bitfinex-derivatives/quotes_BTCF0:USTF0_20240923
["timestamp","ask_amount","ask_price","bid_price","bid_amount"]
[1727094149178,0.157618,63447.0,63439.0,0.0480612]
[1727094149179,0.157636,63440.0,63439.0,0.0480612]
[1727094149380,0.13,63440.0,63437.0,0.1260822]
[1727094149579,0.13,63440.0,63437.0,0.078821]
[1727094149580,0.078821,63438.0,63437.0,0.078821]
[1727094150077,0.067821,63438.0,63437.0,0.078821]
[1727094150980,0.068821,63438.0,63437.0,0.091821]
[1727094151182,0.060821,63438.0,63437.0,0.091821]
[1727094151689,0.07910424,63438.0,63437.0,0.091821]
[1727094151896,0.08010424,63438.0,63437.0,0.099821]
[1727094152587,0.08010424,63438.0,63437.0,0.1470822]
[1727094153288,0.08010424,63438.0,63437.0,0.099821]
[1727094154593,0.21010424,63438.0,63437.0,0.099821]
[1727094158397,0.15028324,63438.0,63437.0,0.099821]
[1727094159088,0.22910424,63438.0,63437.0,0.099821]
[1727094164784,0.30792524,63438.0,63437.0,0.021]
[1727094165201,0.09910424,63438.0,63437.0,0.021]
[1727094165493,0.22910424,63438.0,63437.0,0.021]
[1727094166281,0.22910424,63438.0,63437.0,0.099822]
[1727094168790,0.15028324,63438.0,63437.0,0.099822]
[1727094170397,0.15028324,63438.0,63437.0,0.16283693]
[1727094172307,0.15028324,63438.0,63437.0,0.099822]
[1727094172308,0.22910424,63438.0,63437.0,0.099822]
[1727094173093,0.15028324,63438.0,63437.0,0.099822]
[1727094174401,0.02028324,63438.0,63437.0,0.099822]
[1727094175201,0.02028324,63438.0,63437.0,0.178644]
[1727094175693,0.11452793,63438.0,63437.0,0.178644]
[1727094176095,0.0037,63443.0,63442.0,0.236448]
[1727094176300,0.01828564,63447.0,63446.0,0.157622]
[1727094176506,0.10995213,63452.0,63451.0,0.078804]
[1727094176807,0.03298762,63452.0,63451.0,0.078804]
[1727094177008,0.18110969,63452.0,63451.0,0.078804]
[1727094178425,0.29106182,63452.0,63451.0,0.078804]
[1727094179109,0.29306182,63452.0,63451.0,0.078804]
[1727094179305,0.18310969,63452.0,63451.0,0.078804]
[1727094180404,0.18110969,63452.0,63451.0,0.078804]
[1727094180609,0.10995213,63454.0,63453.0,0.078802]
[1727094180812,0.09425592,63464.0,63463.0,0.07879]
[1727094180999,0.02554762,63464.0,63463.0,0.43959]
[1727094181198,0.01862369,63466.0,63463.0,0.3608]
[1727094181410,0.07134762,63465.0,63464.0,0.078788]
[1727094181708,0.0458,63465.0,63464.0,0.078788]
[1727094182904,0.005,63465.0,63464.0,0.157576]
[1727094183107,0.005,63465.0,63464.0,0.288576]
[1727094183108,0.012,63465.0,63464.0,0.288576]
[1727094183307,0.012,63465.0,63464.0,0.761296]
[1727094183511,0.13,63477.0,63464.0,0.761296]
[1727094183512,0.13,63482.0,63478.0,0.078771]
[1727094183708,0.02098225,63479.0,63478.0,0.078771]
[1727094183914,0.00236382,63479.0,63478.0,0.078771]
[1727094185004,0.01636382,63479.0,63478.0,0.078771]
[1727094185405,0.03438465,63479.0,63478.0,0.078771]
[1727094185614,0.02136382,63479.0,63478.0,0.079771]
[1727094187220,0.15136382,63479.0,63478.0,0.079771]
[1727094187409,0.16928474,63479.0,63478.0,0.079771]
[1727094190720,0.20035974,63479.0,63478.0,0.079771]
[1727094191820,0.20035974,63479.0,63478.0,0.001]
[1727094192019,0.20035974,63479.0,63478.0,0.079771]
[1727094192020,0.050075,63479.0,63478.0,0.079771]
[1727094192322,0.019,63479.0,63478.0,0.237329]
[1727094193521,0.022,63479.0,63478.0,0.237329]
[1727094193720,0.022,63479.0,63478.0,0.25550799]
[1727094193918,0.022,63479.0,63478.0,0.237329]
[1727094194425,0.0495,63489.0,63488.0,0.157532]
[1727094194925,0.3608,63493.0,63492.0,0.078761]
[1727094195113,0.39247715,63493.0,63492.0,0.078761]
[1727094195313,0.3608,63493.0,63492.0,0.078761]
[1727094195725,0.3608,63493.0,63492.0,0.157522]
[1727094195924,0.3608,63493.0,63492.0,0.078761]
[1727094196632,0.3608,63493.0,63492.0,0.080761]
[1727094196633,0.3828,63493.0,63492.0,0.080761]
[1727094197114,0.3828,63493.0,63492.0,1.362002]
[1727094197115,0.022,63493.0,63492.0,1.362002]
[1727094197318,0.022,63493.0,63492.0,1.45901464]
[1727094197319,1e-06,63493.0,63492.0,1.45901464]
[1727094197926,1e-06,63493.0,63492.0,1.53777564]
[1727094198325,1e-06,63493.0,63492.0,1.45901464]
[1727094198724,1e-06,63493.0,63492.0,1.53777564]
[1727094198920,0.3608,63532.0,63493.0,0.47244]
[1727094199130,0.3608,63532.0,63517.0,0.07873]
[1727094199131,0.0486,63518.0,63517.0,0.07873]
[1727094200426,0.0486,63518.0,63517.0,0.07973]
[1727094200625,0.127329,63518.0,63517.0,0.001]
[1727094201023,0.257329,63518.0,63517.0,0.001]
[1727094201928,0.257329,63518.0,63517.0,0.002]
[1727094204832,0.127329,63518.0,63517.0,0.002]
[1727094205131,0.0486,63518.0,63511.0,0.078737]
[1727094205334,0.078736,63513.0,63506.0,0.3608]
[1727094206029,0.13,63514.0,63513.0,0.078735]
[1727094206532,1.08,63514.0,63513.0,0.078735]
[1727094206927,0.13,63514.0,63513.0,0.078735]
[1727094208032,0.13,63514.0,63506.0,0.3648]
[1727094208033,0.078734,63515.0,63506.0,0.3648]
[1727094208231,0.078734,63515.0,63514.0,0.078733]
[1727094209628,0.078734,63515.0,63506.0,0.3608]
[1727094209828,0.3608,63513.0,63507.0,0.078743]
[1727094210036,0.3608,63513.0,63506.0,0.3608]
[1727094210037,0.3608,63513.0,63512.0,0.078737]
[1727094210232,0.078732,63516.0,63515.0,0.078733]
[1727094211237,0.016434,63518.0,63517.0,0.07873]
[1727094211943,0.01854642,63519.0,63518.0,0.157458]
[1727094212137,0.0496,63521.0,63520.0,0.078727]
[1727094212834,0.23742551,63521.0,63520.0,0.078727]
[1727094213139,0.14398907,63521.0,63520.0,0.078727]
[1727094213642,0.17684247,63521.0,63520.0,0.079727]
[1727094214939,0.17684247,63521.0,63520.0,0.080727]
[1727094215127,0.10940731,63521.0,63520.0,0.080727]
[1727094215332,0.01566407,63521.0,63520.0,0.080727]
[1727094215530,0.078723,63523.0,63522.0,0.078724]
[1727094216735,0.078723,63523.0,63522.0,0.079724]
[1727094217734,0.17250793,63523.0,63522.0,0.079724]
[1727094218037,0.078723,63523.0,63522.0,0.079724]
[1727094218235,0.09432047,63525.0,63522.0,0.001]
[1727094218436,0.18813153,63525.0,63524.0,0.078722]
[1727094218833,0.09432047,63525.0,63524.0,0.078722]
[1727094220233,0.09432047,63525.0,63524.0,0.079722]
[1727094221942,0.09432047,63525.0,63524.0,0.080722]
[1727094222931,0.01559847,63525.0,63517.0,0.0037]
[1727094223137,0.01559847,63525.0,63514.0,0.0037]
[1727094223138,0.13,63519.0,63514.0,0.0037]
[1727094223345,0.13,63519.0,63515.0,0.078733]
[1727094223346,0.078733,63516.0,63515.0,0.078733]
[1727094225044,0.439533,63516.0,63515.0,0.078733]
[1727094225237,0.078739,63512.0,63511.0,0.078737]
[1727094225440,0.208739,63512.0,63511.0,0.078737]
[1727094226235,0.078739,63512.0,63511.0,0.078737]
[1727094227834,0.22010603,63512.0,63511.0,0.078737]
[1727094228039,0.19834987,63512.0,63511.0,0.078737]
[1727094228339,0.03271548,63512.0,63511.0,0.518275]
[1727094228538,0.03305102,63515.0,63511.0,0.3608]
[1727094228747,0.03305102,63514.0,63512.0,0.078737]
[1727094228946,0.11000476,63518.0,63517.0,0.07873]
[1727094229138,0.11000476,63518.0,63517.0,0.15746]
[1727094229447,0.03304398,63518.0,63517.0,0.15746]
[1727094229646,0.11002687,63518.0,63517.0,0.07873]
[1727094229840,0.0716241,63518.0,63517.0,0.15746]
[1727094230047,0.0716241,63518.0,63517.0,0.07873]
[1727094230650,0.0716241,63518.0,63517.0,0.07973]
[1727094231648,0.0716241,63518.0,63517.0,0.08073]
[1727094233545,0.13520358,63519.0,63518.0,0.078729]
[1727094233743,0.11989604,63519.0,63518.0,0.078729]
[1727094233945,0.078727,63520.0,63519.0,0.078728]
[1727094233946,0.23592666,63520.0,63519.0,0.078728]
[1727094234143,0.35582824,63520.0,63519.0,0.078728]
[1727094234446,0.19862858,63520.0,63519.0,0.078728]
[1727094234646,0.32862858,63520.0,63519.0,0.078728]
[1727094234846,0.24174385,63520.0,63519.0,0.078728]
[1727094235054,0.2570149,63520.0,63519.0,0.078728]
[1727094235953,0.2570149,63520.0,63519.0,0.079728]
[1727094236147,0.2570149,63520.0,63519.0,0.080728]
[1727094239355,0.36705825,63520.0,63519.0,0.080728]
[1727094239744,0.44578525,63520.0,63519.0,0.002]
[1727094240850,0.37429926,63520.0,63519.0,0.002]
[1727094241245,0.50006309,63520.0,63519.0,0.002]
[1727094241458,0.37429926,63520.0,63519.0,0.002]
[1727094241846,0.37009582,63520.0,63519.0,0.002]
[1727094242154,0.3700936,63520.0,63519.0,0.002]
[1727094242354,0.24429926,63520.0,63519.0,0.002]
[1727094242951,0.2057419,63520.0,63519.0,0.002]
[1727094243662,0.56632185,63520.0,63519.0,0.002]
[1727094245647,0.48759485,63520.0,63519.0,0.002]
[1727094247156,0.48759485,63520.0,63519.0,0.080728]
[1727094248354,0.48768348,63520.0,63519.0,0.080728]
[1727094249953,0.57457274,63520.0,63519.0,0.080728]
[1727094250157,0.63104669,63520.0,63519.0,0.080728]
[1727094253361,0.63108137,63520.0,63519.0,0.080728]
[1727094255980,0.74770771,63520.0,63519.0,0.080728]
[1727094256682,0.63108137,63520.0,63519.0,0.080728]
[1727094257279,0.55235437,63520.0,63519.0,0.080728]
[1727094257473,0.49588042,63520.0,63519.0,0.159456]
[1727094257978,0.40905106,63520.0,63519.0,0.159456]
[1727094259378,0.04825106,63520.0,63519.0,0.159456]
[1727094259875,0.40905106,63520.0,63519.0,0.159456]
[1727094260074,0.40905106,63520.0,63519.0,0.080728]
[1727094260575,0.04825106,63520.0,63519.0,0.080728]
[1727094260783,0.40905106,63520.0,63519.0,0.080728]
[1727094262073,0.04825106,63520.0,63519.0,0.080728]
[1727094262278,0.40905106,63520.0,63519.0,0.080728]
[1727094262674,0.51923752,63520.0,63519.0,0.080728]
[1727094262876,0.51926712,63520.0,63519.0,0.080728]
[1727094263473,0.40908066,63520.0,63519.0,0.159456]
[1727094264986,0.49596407,63520.0,63519.0,0.078728]
[1727094265375,0.70067618,63520.0,63519.0,0.078728]
[1727094265571,0.70067618,63520.0,63519.0,0.157456]
[1727094267491,0.55243423,63520.0,63519.0,0.157456]
[1727094267683,0.49596407,63520.0,63519.0,0.157456]
[1727094268386,0.49596407,63520.0,63519.0,0.287456]
[1727094268583,0.13516407,63520.0,63519.0,0.287456]
[1727094269983,0.13516407,63520.0,63519.0,0.335256]
[1727094270187,0.13516407,63520.0,63519.0,0.413984]
[1727094270380,0.13516407,63520.0,63519.0,0.335256]
[1727094270583,0.13516407,63520.0,63519.0,0.413984]
[1727094270785,0.13516407,63520.0,63519.0,0.335256]
[1727094271392,0.15731879,63521.0,63520.0,0.236181]
[1727094271589,0.05647016,63529.0,63520.0,0.60228]
[1727094271780,0.0037,63533.0,63528.0,0.3608]
[1727094272088,0.0471,63537.0,63531.0,0.13]
[1727094272797,0.0471,63537.0,63533.0,0.3608]
[1727094272976,0.0471,63537.0,63525.0,0.0037]
[1727094273181,0.09431101,63533.0,63532.0,0.208712]
[1727094273382,0.09431101,63535.0,63534.0,0.078709]
[1727094273988,0.09431101,63536.0,63535.0,0.078708]
[1727094274389,0.09431101,63536.0,63532.0,0.208712]
[1727094274390,0.4079,63537.0,63536.0,0.078707]
[1727094275696,0.4079,63537.0,63536.0,0.079707]
[1727094276792,0.50209047,63537.0,63536.0,0.079707]
[1727094277198,0.50209047,63537.0,63536.0,0.080707]
[1727094278390,0.4079,63537.0,63536.0,0.080707]
[1727094279399,0.486606,63537.0,63536.0,0.080707]
[1727094279995,0.62992678,63537.0,63536.0,0.002]
[1727094280297,0.70992678,63537.0,63536.0,0.002]
[1727094280489,0.78863278,63537.0,63536.0,0.002]
[1727094280897,0.78863278,63537.0,63528.0,0.0037]
[1727094280898,0.078716,63529.0,63528.0,0.0037]
[1727094281193,0.078716,63529.0,63522.0,0.078724]
[1727094281194,0.078724,63523.0,63522.0,0.078724]
[1727094281394,0.19599783,63523.0,63522.0,0.078724]
[1727094281900,0.19600897,63523.0,63522.0,0.078724]
[1727094282498,0.19600897,63523.0,63522.0,0.208724]
[1727094283198,0.11728497,63523.0,63522.0,0.208724]
[1727094283889,0.11728497,63523.0,63522.0,0.09984915]
[1727094284097,0.11728497,63523.0,63518.0,0.00236127]
[1727094284397,0.11728497,63522.0,63520.0,0.13]
[1727094284597,0.11728497,63521.0,63520.0,0.208727]
[1727094285100,0.11728497,63521.0,63520.0,0.078727]
[1727094285600,0.06896241,63521.0,63520.0,0.078727]
[1727094286402,0.14768741,63521.0,63520.0,0.078727]
[1727094286603,0.19601155,63521.0,63520.0,0.078727]
[1727094286812,0.11728655,63521.0,63520.0,0.078727]
[1727094287793,0.11528655,63521.0,63520.0,1.590534]
[1727094287999,0.08487592,63521.0,63520.0,1.641807]
[1727094288201,0.170117,63528.0,63527.0,0.078718]
[1727094289302,0.078722,63525.0,63524.0,0.078721]
[1727094290507,0.078722,63525.0,63524.0,0.079721]
[1727094294805,0.078722,63525.0,63524.0,0.001]
[1727094295106,0.10913338,63525.0,63524.0,0.001]
[1727094300510,0.10913345,63525.0,63524.0,0.001]
[1727094300807,0.18785445,63525.0,63524.0,0.001]
[1727094301998,0.31785445,63525.0,63524.0,0.001]
[1727094302509,0.18785445,63525.0,63524.0,0.001]
[1727094302708,0.31785445,63525.0,63524.0,0.001]
[1727094303197,0.40473505,63525.0,63524.0,0.001]
[1727094303401,0.40473505,63525.0,63524.0,0.00065292]
[1727094304406,0.27473505,63525.0,63524.0,0.00065292]
[1727094304618,0.078722,63524.0,63517.0,0.0037]
[1727094304908,0.078722,63524.0,63514.0,0.0037]
[1727094304909,0.157466,63515.0,63514.0,0.0037]
[1727094305102,0.32602505,63515.0,63507.0,0.0037]
[1727094305306,0.32602505,63515.0,63509.0,0.07874]
[1727094305307,0.25169445,63510.0,63509.0,0.07874]
[1727094305508,0.27770624,63510.0,63509.0,0.07874]
[1727094305707,0.32603205,63510.0,63509.0,0.07874]
[1727094307011,0.24729205,63510.0,63506.0,0.078744]
[1727094307202,0.11729205,63509.0,63506.0,0.078744]
[1727094307409,0.13,63507.0,63506.0,0.078744]
[1727094307604,0.32603605,63507.0,63506.0,0.078744]
[1727094307902,0.37263605,63507.0,63506.0,0.078744]
[1727094309414,0.37263605,63507.0,63506.0,0.081744]
[1727094309609,0.37263605,63507.0,63506.0,0.087744]
[1727094309801,0.24263605,63507.0,63506.0,0.087744]
[1727094310312,0.125344,63507.0,63506.0,0.087744]
[1727094313108,0.334088,63507.0,63506.0,0.009]
[1727094313419,0.078751,63500.0,63499.0,0.082452]
[1727094313712,0.208751,63500.0,63499.0,0.078752]
[1727094313916,0.078754,63498.0,63497.0,0.00236232]
[1727094314302,0.157508,63498.0,63497.0,0.00236232]
[1727094314613,0.147508,63498.0,63497.0,0.00236232]
[1727094314815,0.134508,63498.0,63497.0,0.00236232]
[1727094315616,0.055754,63498.0,63497.0,0.00236232]
[1727094315814,0.055754,63498.0,63497.0,0.08111732]
[1727094316917,0.056754,63498.0,63497.0,0.09311732]
[1727094317423,0.056754,63498.0,63497.0,0.10411732]
[1727094317424,0.057754,63498.0,63497.0,0.10411732]
[1727094317920,0.057754,63498.0,63497.0,0.09411732]
[1727094317921,0.056754,63498.0,63497.0,0.09411732]
[1727094318111,0.0871793,63498.0,63497.0,0.09411732]
[1727094318314,0.16673542,63498.0,63497.0,0.09411732]
[1727094318630,0.19716072,63498.0,63497.0,0.09411732]
[1727094319316,0.0871793,63498.0,63497.0,0.09411732]
[1727094320021,0.0871793,63498.0,63497.0,0.08311732]
[1727094321116,0.0871793,63498.0,63497.0,0.080755]
[1727094322527,0.1671793,63498.0,63497.0,0.080755]
[1727094323016,0.16717942,63498.0,63497.0,0.080755]
[1727094325327,0.136754,63498.0,63497.0,0.080755]
[1727094329115,0.081,63498.0,63497.0,0.080755]
[1727094329316,0.001,63498.0,63497.0,0.15951]
[1727094329615,0.001,63498.0,63497.0,1.310705]
[1727094329922,0.001,63498.0,63497.0,0.710705]
[1727094331321,0.001,63498.0,63497.0,1.35779056]
[1727094331520,0.001,63498.0,63497.0,1.310705]
[1727094332121,0.001,63498.0,63497.0,1.671505]
[1727094332627,0.001,63498.0,63497.0,1.73447586]
[1727094332826,0.001,63498.0,63497.0,1.73247586]
[1727094333027,0.002,63498.0,63497.0,1.75647586]
[1727094333324,0.002,63498.0,63497.0,1.693505]
[1727094336223,0.002,63498.0,63497.0,1.093505]
[1727094337827,0.002,63498.0,63497.0,1.10919901]
[1727094338915,0.002,63498.0,63497.0,0.63675901]
[1727094340628,0.07098364,63498.0,63497.0,0.63675901]
[1727094341024,0.12769306,63498.0,63497.0,0.63675901]
[1727094341225,0.1966767,63498.0,63497.0,0.63675901]
[1727094344524,0.06898364,63498.0,63497.0,1.78795401]
[1727094346114,0.06898364,63498.0,63497.0,1.31551401]
[1727094346316,0.06898364,63498.0,63497.0,0.63675901]
[1727094346535,0.14898364,63498.0,63497.0,0.54231]
[1727094346826,0.19732127,63498.0,63497.0,0.54231]
[1727094347128,0.19732169,63498.0,63497.0,0.54231]
[1727094347336,0.24702169,63498.0,63497.0,0.54231]
[1727094348027,0.198684,63498.0,63497.0,0.54231]
[1727094348235,0.0497,63498.0,63497.0,0.54231]
[1727094348424,0.01030094,63498.0,63497.0,0.54231]
[1727094354438,0.01030094,63498.0,63497.0,0.62104177]
[1727094355228,0.01030094,63498.0,63497.0,0.54231]
[1727094355229,0.04072071,63498.0,63497.0,0.54231]
[1727094356337,0.04072071,63498.0,63497.0,0.62231]
[1727094356546,0.04072071,63498.0,63497.0,0.701065]
[1727094357539,0.150699,63498.0,63497.0,0.701065]
[1727094357733,0.150699,63498.0,63497.0,0.621065]
[1727094357938,0.04072071,63498.0,63497.0,0.621065]
[1727094358339,0.07928553,63498.0,63497.0,0.621065]
[1727094358648,0.07928553,63498.0,63497.0,0.463555]
[1727094359131,0.07928553,63498.0,63497.0,0.102755]
[1727094359534,0.07928553,63498.0,63497.0,0.463555]
[1727094359741,0.28398937,63498.0,63497.0,0.463555]
[1727094360241,0.15803953,63498.0,63497.0,0.463555]
[1727094360833,0.15804261,63498.0,63497.0,0.463555]
[1727094361642,0.15804261,63498.0,63497.0,0.388655]
[1727094361844,0.15804261,63498.0,63494.0,0.078757]
[1727094361845,0.078759,63495.0,63494.0,0.078757]
[1727094362043,0.22774667,63495.0,63494.0,0.078757]
[1727094362243,0.28470817,63495.0,63494.0,0.078757]
[1727094362432,0.158759,63495.0,63494.0,0.078757]
[1727094362635,0.01030094,63498.0,63497.0,0.078755]
[1727094362636,0.16905494,63498.0,63497.0,0.078755]
[1727094363937,0.17005494,63498.0,63497.0,0.092755]
[1727094365243,0.17105494,63498.0,63497.0,0.092755]
[1727094369838,0.17105494,63498.0,63497.0,0.13995836]
[1727094370042,0.17105494,63498.0,63497.0,0.092755]
[1727094370346,0.36582128,63498.0,63497.0,0.092755]
[1727094370651,0.24004777,63498.0,63497.0,0.092755]
[1727094372652,0.20147857,63498.0,63497.0,0.092755]
[1727094374254,0.17105494,63498.0,63497.0,0.092755]
[1727094374451,0.20147821,63498.0,63497.0,0.092755]
[1727094375651,0.31152053,63498.0,63497.0,0.092755]
[1727094376450,0.20147821,63498.0,63497.0,0.092755]
[1727094377358,0.002,63498.0,63497.0,0.250265]
[1727094378860,0.002,63498.0,63497.0,0.80261188]
[1727094379074,0.002,63498.0,63497.0,0.72388011]
[1727094379271,0.002,63498.0,63497.0,0.7238353]
[1727094380859,0.002,63498.0,63497.0,1.9550303]
[1727094381471,0.002,63498.0,63497.0,2.04950315]
[1727094381667,0.002,63498.0,63497.0,1.9550303]
[1727094382766,0.002,63498.0,63497.0,1.5942303]
[1727094382967,0.002,63498.0,63497.0,2.3158303]
[1727094383872,1e-06,63498.0,63497.0,2.20306]
[1727094384173,1e-06,63498.0,63497.0,2.31551046]
[1727094385067,0.0037,63503.0,63502.0,0.236247]
[1727094385267,0.08,63512.0,63502.0,0.236247]
[1727094385268,0.0037,63508.0,63507.0,0.157486]
[1727094385566,0.04836249,63513.0,63512.0,0.078737]
[1727094388166,0.05436249,63513.0,63512.0,0.078737]
[1727094388571,0.05436249,63513.0,63512.0,0.157474]
[1727094391279,0.006,63513.0,63512.0,0.755748]
[1727094391580,1e-06,63513.0,63512.0,0.80290997]
[1727094391772,1e-06,63513.0,63512.0,0.86813063]
[1727094391987,1e-06,63513.0,63512.0,0.805248]
[1727094392570,0.03041073,63513.0,63512.0,0.805248]
[1727094393081,0.11358684,63518.0,63517.0,0.23619]
[1727094393282,0.3608,63524.0,63523.0,0.078723]
[1727094393599,0.39935063,63524.0,63523.0,0.078723]
[1727094394280,0.52484091,63524.0,63523.0,0.078723]
[1727094395176,0.53284091,63524.0,63523.0,0.079723]
[1727094395371,0.40735063,63524.0,63523.0,0.079723]
[1727094395875,0.3758,63524.0,63523.0,0.080723]
[1727094396076,0.3758,63524.0,63523.0,0.159446]
[1727094397286,0.015,63524.0,63523.0,0.159446]
[1727094398776,0.015,63524.0,63523.0,0.080723]
[1727094402088,0.015,63524.0,63523.0,0.159446]
[1727094402487,0.015,63524.0,63523.0,0.080723]
[1727094402688,0.095,63524.0,63523.0,0.080723]
[1727094402881,0.173722,63524.0,63520.0,0.3608]
[1727094403088,0.4408,63521.0,63520.0,0.078727]
[1727094403281,0.519525,63521.0,63520.0,0.078727]
[1727094404390,0.519525,63521.0,63520.0,0.079727]
[1727094405091,0.523525,63521.0,63520.0,0.079727]
[1727094405485,0.078729,63518.0,63517.0,0.07873]
[1727094405791,0.158729,63518.0,63517.0,0.07873]
[1727094407390,0.159729,63518.0,63517.0,0.07873]
[1727094407588,0.162729,63518.0,63517.0,0.07873]
[1727094409387,0.162729,63518.0,63517.0,0.14151459]
[1727094409582,0.162729,63518.0,63517.0,0.07873]
[1727094410389,0.162729,63518.0,63517.0,0.14151459]
[1727094410689,0.162729,63518.0,63517.0,0.07873]
[1727094410894,0.162729,63518.0,63517.0,0.14151459]
[1727094411528,0.082729,63518.0,63517.0,0.14151459]
[1727094411788,0.162729,63518.0,63517.0,0.14151459]
[1727094411996,0.163729,63518.0,63517.0,0.14151459]
[1727094412184,0.165729,63518.0,63517.0,0.14151459]
[1727094413491,0.160729,63518.0,63517.0,0.07873]
[1727094413684,0.161729,63518.0,63517.0,0.07873]
[1727094413885,0.162729,63518.0,63517.0,0.07873]
[1727094414289,0.158729,63518.0,63517.0,0.07873]
[1727094414485,0.164729,63518.0,63517.0,0.07873]
[1727094416899,0.164729,63518.0,63511.0,0.078737]
[1727094416900,0.078738,63512.0,63511.0,0.078738]
[1727094417088,0.158738,63512.0,63511.0,0.078738]
[1727094417598,0.157483,63510.0,63509.0,0.07874]
[1727094418595,0.078745,63506.0,63505.0,0.078744]
[1727094418794,0.158745,63506.0,63505.0,0.078744]
[1727094420292,0.046,63507.0,63506.0,0.078744]
[1727094420599,0.124743,63507.0,63506.0,0.078744]
[1727094421700,0.125743,63507.0,63506.0,0.084744]
[1727094421901,0.125743,63507.0,63506.0,0.087744]
[1727094422707,0.079743,63507.0,63506.0,0.27999178]
[1727094422907,0.001,63507.0,63506.0,0.27999178]
[1727094423496,0.001,63507.0,63506.0,0.1663472]
[1727094425107,0.001,63507.0,63506.0,0.27970358]
[1727094425304,0.001,63507.0,63506.0,0.27969446]
[1727094425504,0.001,63507.0,63506.0,0.27969364]
[1727094425703,0.001,63507.0,63506.0,0.1663472]
[1727094426311,0.001,63507.0,63506.0,0.27969436]
[1727094426607,0.439537,63512.0,63510.0,0.078739]
[1727094427119,0.440377,63512.0,63510.0,0.078739]
[1727094427411,0.36164,63512.0,63511.0,0.078738]
[1727094427736,0.3608,63512.0,63511.0,0.157476]
[1727094427896,0.158735,63513.0,63512.0,0.078737]
[1727094428299,0.158735,63513.0,63512.0,0.27031695]
[1727094428605,0.158735,63513.0,63512.0,0.19183869]
[1727094430503,0.158735,63513.0,63512.0,0.078737]
[1727094430810,0.161735,63513.0,63512.0,0.078737]
[1727094431606,0.003,63513.0,63512.0,0.236211]
[1727094431812,0.003,63513.0,63512.0,0.597011]
[1727094432008,0.003,63513.0,63512.0,0.518274]
[1727094437613,0.003,63513.0,63512.0,0.63128311]
[1727094440015,0.003,63513.0,63512.0,0.6312869]
[1727094440515,0.003,63513.0,63512.0,0.7900239]
[1727094441611,0.003,63513.0,63512.0,0.8687609]
[1727094441808,0.003,63513.0,63512.0,1.00330094]
[1727094442209,0.0037,63519.0,63518.0,0.236187]
[1727094442414,0.08,63526.0,63518.0,0.5538129]
[1727094442603,0.08,63526.0,63524.0,0.06282047]
[1727094444123,0.00936227,63525.0,63524.0,0.22026447]
[1727094444312,0.00936227,63525.0,63524.0,0.157444]
[1727094444509,0.09536227,63525.0,63524.0,0.22124191]
[1727094444710,0.10736227,63525.0,63524.0,0.22224191]
[1727094445119,0.10736227,63525.0,63524.0,0.159444]
[1727094445415,0.10736227,63525.0,63524.0,0.22223874]
[1727094445622,0.17632251,63525.0,63524.0,0.159444]
[1727094446215,0.09632251,63525.0,63524.0,0.159444]
[1727094446718,0.09396024,63525.0,63524.0,0.318166]
[1727094446909,0.05540926,63525.0,63524.0,0.318166]
[1727094448323,0.05540926,63525.0,63524.0,0.238166]
[1727094448921,0.05540926,63525.0,63524.0,0.159444]
[1727094449423,0.05540893,63525.0,63524.0,0.159444]
[1727094452721,0.025,63525.0,63524.0,0.159444]
[1727094455421,0.025,63525.0,63524.0,0.22223874]
[1727094455622,0.025,63525.0,63524.0,0.318166]
[1727094455824,0.025,63525.0,63524.0,0.38096074]
[1727094456515,0.025,63525.0,63524.0,0.869128]
[1727094456927,0.025,63525.0,63524.0,0.50920859]
[1727094457227,0.025,63525.0,63524.0,0.50919386]
[1727094458020,0.025,63525.0,63524.0,0.58768779]
[1727094458427,0.025,63525.0,63524.0,0.50896579]
[1727094458735,0.025,63525.0,63524.0,0.42896579]
[1727094458919,0.025,63525.0,63524.0,0.31665993]
[1727094459815,0.025,63525.0,63524.0,0.42901513]
[1727094460520,0.025,63525.0,63524.0,0.42901381]
[1727094460730,0.05540643,63525.0,63524.0,0.238166]
[1727094461339,0.05540643,63525.0,63524.0,0.598966]
[1727094465226,0.05540643,63525.0,63524.0,0.520244]
[1727094465623,0.05540643,63525.0,63524.0,0.441522]
[1727094465937,0.10450643,63525.0,63524.0,0.441522]
[1727094466231,0.10450643,63525.0,63524.0,0.080722]
[1727094466535,0.29314621,63525.0,63524.0,0.080722]
[1727094466839,0.22177872,63525.0,63524.0,0.080722]
[1727094467031,0.18322643,63525.0,63524.0,0.080722]
[1727094467333,0.22177879,63525.0,63524.0,0.080722]
[1727094467832,0.15282,63525.0,63524.0,0.080722]
[1727094471529,0.23154,63525.0,63524.0,0.002]
[1727094471834,0.23154,63525.0,63523.0,0.04717765]
[1727094471835,0.236166,63524.0,63523.0,0.04717765]
[1727094472031,0.078732,63516.0,63515.0,0.15722693]
[1727094472241,0.078732,63516.0,63515.0,0.078733]
[1727094472536,0.125032,63516.0,63515.0,0.078733]
[1727094473139,0.078735,63513.0,63512.0,0.15722993]
[1727094473322,0.078735,63513.0,63508.0,0.42554601]
[1727094473323,0.078739,63510.0,63509.0,0.07861243]
[1727094473522,0.078739,63510.0,63506.0,0.078744]
[1727094473523,0.13,63510.0,63506.0,0.078744]
[1727094473733,0.3608,63508.0,63506.0,0.078744]
[1727094474130,0.208743,63507.0,63506.0,0.078744]
[1727094474839,0.208743,63507.0,63506.0,0.084744]
[1727094475022,0.208743,63507.0,63506.0,0.087744]
[1727094475227,0.078743,63507.0,63506.0,0.087744]
[1727094475424,0.079743,63507.0,63506.0,0.086744]
[1727094476635,0.079743,63507.0,63506.0,0.083744]
[1727094476831,0.079743,63507.0,63506.0,0.086744]
[1727094479536,0.043843,63507.0,63506.0,0.086744]
[1727094481843,0.173843,63507.0,63506.0,0.086744]
[1727094482339,0.202586,63507.0,63506.0,0.008]